[Event "Titled Tuesday Blitz November 01 Early 2022"]
[White "Yurasova, Daria"]
[Black "Terzi, Alexei"]
[WhiteFideId "34146919"]
[BlackFideId "13505076"]
[WhiteElo "2044"]
[BlackElo "2172"]
[Result "1/2-1/2"]
[Round "09"]
[TimeControl "180+1"]
[Date "2022.11.02"]
[WhiteClock "0:00:10"]
[BlackClock "0:00:13"]

1. d4 {[%clk 0:03:00]}  Nf6 {[%clk 0:02:59]} 2. Bg5 {[%clk 0:02:59]}  d5 {[%clk 0:02:59]} 3. Bxf6 {[%clk 0:02:59]}  exf6 {[%clk 0:02:59]} 4. e3 {[%clk 0:02:59]}  Bd6 {[%clk 0:02:56]} 5. g3 {[%clk 0:02:59]}  c6 {[%clk 0:02:55]} 6. Bg2 {[%clk 0:03:00]}  Nd7 {[%clk 0:02:55]} 7. Ne2 {[%clk 0:03:00]}  f5 {[%clk 0:02:55]} 8. O-O {[%clk 0:03:01]}  Nf6 {[%clk 0:02:55]} 9. c4 {[%clk 0:03:01]}  dxc4 {[%clk 0:02:54]} 10. Nd2 {[%clk 0:03:00]}  h5 {[%clk 0:02:53]} 11. Nxc4 {[%clk 0:03:00]}  Bc7 {[%clk 0:02:53]} 12. Nc3 {[%clk 0:02:50]}  h4 {[%clk 0:02:46]} 13. d5 {[%clk 0:02:42]}  cxd5 {[%clk 0:02:34]} 14. Nxd5 {[%clk 0:02:42]}  Nxd5 {[%clk 0:02:33]} 15. Qxd5 {[%clk 0:02:42]}  Qxd5 {[%clk 0:02:22]} 16. Bxd5 {[%clk 0:02:42]}  hxg3 {[%clk 0:02:20]} 17. hxg3 {[%clk 0:02:41]}  Be6 {[%clk 0:02:19]} 18. Bxb7 {[%clk 0:02:21]}  Rb8 {[%clk 0:02:04]} 19. Bc6+ {[%clk 0:02:20]}  Ke7 {[%clk 0:02:04]} 20. b3 {[%clk 0:02:13]}  g5 {[%clk 0:01:55]} 21. Kg2 {[%clk 0:01:56]}  f4 {[%clk 0:01:26]} 22. Rh1 {[%clk 0:01:55]}  Bg4 {[%clk 0:01:08]} 23. Bf3 {[%clk 0:01:44]}  Be6 {[%clk 0:01:04]} 24. Rxh8 {[%clk 0:01:10]}  Rxh8 {[%clk 0:01:05]} 25. exf4 {[%clk 0:01:11]}  gxf4 {[%clk 0:00:56]} 26. g4 {[%clk 0:01:00]}  Rg8 {[%clk 0:00:52]} 27. Re1 {[%clk 0:01:00]}  Kf6 {[%clk 0:00:41]} 28. Rh1 {[%clk 0:00:57]}  Bxg4 {[%clk 0:00:32]} 29. Bxg4 {[%clk 0:00:58]}  Rxg4+ {[%clk 0:00:33]} 30. Kf3 {[%clk 0:00:58]}  Rg6 {[%clk 0:00:33]} 31. Rd1 {[%clk 0:00:57]}  Ke7 {[%clk 0:00:32]} 32. Re1+ {[%clk 0:00:55]}  Re6 {[%clk 0:00:32]} 33. Rd1 {[%clk 0:00:52]}  Ra6 {[%clk 0:00:30]} 34. a4 {[%clk 0:00:52]}  Re6 {[%clk 0:00:30]} 35. Rd5 {[%clk 0:00:51]}  a6 {[%clk 0:00:30]} 36. Rc5 {[%clk 0:00:48]}  Kd7 {[%clk 0:00:30]} 37. Rf5 {[%clk 0:00:47]}  f6 {[%clk 0:00:29]} 38. Rh5 {[%clk 0:00:45]}  Kc6 {[%clk 0:00:28]} 39. b4 {[%clk 0:00:41]}  Re1 {[%clk 0:00:27]} 40. Rc5+ {[%clk 0:00:41]}  Kd7 {[%clk 0:00:24]} 41. Nd2 {[%clk 0:00:38]}  Ra1 {[%clk 0:00:22]} 42. a5 {[%clk 0:00:21]}  Bd6 {[%clk 0:00:23]} 43. Rc4 {[%clk 0:00:15]}  Ra4 {[%clk 0:00:23]} 44. Ne4 {[%clk 0:00:11]}  Rxb4 {[%clk 0:00:23]} 45. Nxd6 {[%clk 0:00:11]}  Rb3+ {[%clk 0:00:22]} 46. Kxf4 {[%clk 0:00:11]}  Kxd6 {[%clk 0:00:23]} 47. f3 {[%clk 0:00:08]}  Ra3 {[%clk 0:00:22]} 48. Rb4 {[%clk 0:00:08]}  Rxa5 {[%clk 0:00:22]} 49. Rb6+ {[%clk 0:00:09]}  Ke7 {[%clk 0:00:23]} 50. Rb7+ {[%clk 0:00:09]}  Ke6 {[%clk 0:00:23]} 51. Rb6+ {[%clk 0:00:10]}  Kf7 {[%clk 0:00:23]} 52. Rb7+ {[%clk 0:00:10]}  Kg6 {[%clk 0:00:24]} 53. Ra7 {[%clk 0:00:11]}  Ra4+ {[%clk 0:00:23]} 54. Kg3 {[%clk 0:00:11]}  Kf5 {[%clk 0:00:23]} 55. Ra8 {[%clk 0:00:11]}  Ra3 {[%clk 0:00:23]} 56. Ra7 {[%clk 0:00:11]}  Ke5 {[%clk 0:00:21]} 57. Ra8 {[%clk 0:00:10]}  Ra4 {[%clk 0:00:21]} 58. Re8+ {[%clk 0:00:09]}  Kd6 {[%clk 0:00:20]} 59. Ra8 {[%clk 0:00:10]}  Ke6 {[%clk 0:00:18]} 60. Ra7 {[%clk 0:00:08]}  Kf5 {[%clk 0:00:18]} 61. Ra8 {[%clk 0:00:09]}  Kg6 {[%clk 0:00:17]} 62. Ra7 {[%clk 0:00:09]}  Ra5 {[%clk 0:00:18]} 63. Ra8 {[%clk 0:00:10]}  Kg5 {[%clk 0:00:18]} 64. Rg8+ {[%clk 0:00:09]}  Kf5 {[%clk 0:00:18]} 65. Ra8 {[%clk 0:00:10]}  Ke6 {[%clk 0:00:18]} 66. Ra7 {[%clk 0:00:11]}  Kd6 {[%clk 0:00:18]} 67. Rf7 {[%clk 0:00:10]}  Ke6 {[%clk 0:00:13]} 68. Ra7 {[%clk 0:00:10]}  Ra1 {[%clk 0:00:13]} 69. Kf4 {[%clk 0:00:10]}  Ra4+ {[%clk 0:00:13]} 70. Kg3 {[%clk 0:00:10]}  Kf5 {[%clk 0:00:13]} 1/2-1/2


[Site "https://www.chess.com"]

[Event "Titled Tuesday Blitz November 01 Early 2022"]
[White "Yurovskykh, Oleksandr"]
[Black "Lauridsen, Jesper Morch"]
[WhiteFideId "14134020"]
[BlackFideId "1401890"]
[WhiteElo "2303"]
[BlackElo "2281"]
[Result "1-0"]
[Round "09"]
[TimeControl "180+1"]
[Date "2022.11.02"]
[WhiteClock "0:00:27"]
[BlackClock "0:00:10"]

1. d4 {[%clk 0:02:35]}  d5 {[%clk 0:02:56]} 2. Bf4 {[%clk 0:02:35]}  e6 {[%clk 0:02:55]} 3. e3 {[%clk 0:02:35]}  Bd6 {[%clk 0:02:55]} 4. Bg3 {[%clk 0:02:36]}  Nf6 {[%clk 0:02:54]} 5. Nd2 {[%clk 0:02:36]}  O-O {[%clk 0:02:53]} 6. Bd3 {[%clk 0:02:36]}  b6 {[%clk 0:02:53]} 7. Qe2 {[%clk 0:02:35]}  c5 {[%clk 0:02:52]} 8. c3 {[%clk 0:02:33]}  Bb7 {[%clk 0:02:49]} 9. e4 {[%clk 0:02:26]}  dxe4 {[%clk 0:01:52]} 10. Nxe4 {[%clk 0:02:24]}  Nxe4 {[%clk 0:01:52]} 11. Bxe4 {[%clk 0:02:24]}  Bxe4 {[%clk 0:01:52]} 12. Qxe4 {[%clk 0:02:25]}  Na6 {[%clk 0:01:50]} 13. O-O-O {[%clk 0:02:17]}  cxd4 {[%clk 0:01:37]} 14. Rxd4 {[%clk 0:02:10]}  Qg5+ {[%clk 0:01:26]} 15. Kc2 {[%clk 0:01:39]}  Nc5 {[%clk 0:01:13]} 16. Qg4 {[%clk 0:01:21]}  Qxg4 {[%clk 0:01:00]} 17. Rxg4 {[%clk 0:01:21]}  Bxg3 {[%clk 0:00:56]} 18. hxg3 {[%clk 0:01:01]}  Rfd8 {[%clk 0:00:53]} 19. Nf3 {[%clk 0:00:48]}  Nd3 {[%clk 0:00:43]} 20. Rf1 {[%clk 0:00:46]}  Rd7 {[%clk 0:00:40]} 21. Rd4 {[%clk 0:00:41]}  Rxd4 {[%clk 0:00:33]} 22. Nxd4 {[%clk 0:00:42]}  Nc5 {[%clk 0:00:31]} 23. f3 {[%clk 0:00:42]}  Rc8 {[%clk 0:00:28]} 24. Rd1 {[%clk 0:00:42]}  a6 {[%clk 0:00:26]} 25. g4 {[%clk 0:00:40]}  h6 {[%clk 0:00:25]} 26. Ne2 {[%clk 0:00:40]}  Kf8 {[%clk 0:00:24]} 27. Nf4 {[%clk 0:00:40]}  Ke7 {[%clk 0:00:22]} 28. Nh5 {[%clk 0:00:40]}  g6 {[%clk 0:00:20]} 29. Nf4 {[%clk 0:00:41]}  Rd8 {[%clk 0:00:19]} 30. Rh1 {[%clk 0:00:38]}  Rh8 {[%clk 0:00:17]} 31. Ne2 {[%clk 0:00:39]}  Nd7 {[%clk 0:00:16]} 32. Nd4 {[%clk 0:00:39]}  h5 {[%clk 0:00:16]} 33. gxh5 {[%clk 0:00:39]}  Rxh5 {[%clk 0:00:16]} 34. Rxh5 {[%clk 0:00:39]}  gxh5 {[%clk 0:00:16]} 35. Kd3 {[%clk 0:00:39]}  Ne5+ {[%clk 0:00:15]} 36. Ke4 {[%clk 0:00:39]}  Kf6 {[%clk 0:00:15]} 37. b3 {[%clk 0:00:38]}  Ng6 {[%clk 0:00:13]} 38. f4 {[%clk 0:00:31]}  Nh4 {[%clk 0:00:12]} 39. g3 {[%clk 0:00:31]}  Nf5 {[%clk 0:00:12]} 40. Nxf5 {[%clk 0:00:31]}  exf5+ {[%clk 0:00:12]} 41. Kd5 {[%clk 0:00:28]}  Kg6 {[%clk 0:00:12]} 42. Ke5 {[%clk 0:00:26]}  f6+ {[%clk 0:00:10]} 43. Ke6 {[%clk 0:00:26]}  b5 {[%clk 0:00:11]} 44. c4 {[%clk 0:00:26]}  h4 {[%clk 0:00:10]} 45. gxh4 {[%clk 0:00:26]}  bxc4 {[%clk 0:00:10]} 46. bxc4 {[%clk 0:00:25]}  Kh5 {[%clk 0:00:10]} 47. Kxf5 {[%clk 0:00:25]}  Kxh4 {[%clk 0:00:10]} 48. Kxf6 {[%clk 0:00:26]}  Kg4 {[%clk 0:00:10]} 49. Ke5 {[%clk 0:00:27]} 1-0


[Site "https://www.chess.com"]

[Event "Titled Tuesday Blitz November 01 Early 2022"]
[White "Zacurdajev, Dmitry"]
[Black "De Souza, Cristiano Gomes"]
[WhiteFideId "4196309"]
[BlackFideId "2151758"]
[WhiteElo "2179"]
[BlackElo "2068"]
[Result "0-1"]
[Round "09"]
[TimeControl "180+1"]
[Date "2022.11.02"]
[WhiteClock "0:00:01"]
[BlackClock "0:00:55"]

1. d4 {[%clk 0:02:58]}  Nf6 {[%clk 0:02:59]} 2. c4 {[%clk 0:02:57]}  g6 {[%clk 0:02:59]} 3. Nc3 {[%clk 0:02:57]}  Bg7 {[%clk 0:02:59]} 4. e4 {[%clk 0:02:58]}  d6 {[%clk 0:02:59]} 5. Be2 {[%clk 0:02:57]}  O-O {[%clk 0:02:59]} 6. Nf3 {[%clk 0:02:58]}  e6 {[%clk 0:02:59]} 7. O-O {[%clk 0:02:58]}  Nbd7 {[%clk 0:02:59]} 8. Be3 {[%clk 0:02:56]}  b6 {[%clk 0:02:58]} 9. Nd2 {[%clk 0:02:54]}  Bb7 {[%clk 0:02:58]} 10. f4 {[%clk 0:02:48]}  a6 {[%clk 0:02:56]} 11. e5 {[%clk 0:02:35]}  Ne8 {[%clk 0:02:55]} 12. Bf3 {[%clk 0:02:29]}  Bxf3 {[%clk 0:02:53]} 13. Qxf3 {[%clk 0:02:29]}  c5 {[%clk 0:02:53]} 14. dxc5 {[%clk 0:02:11]}  dxe5 {[%clk 0:02:52]} 15. c6 {[%clk 0:02:06]}  Nc5 {[%clk 0:02:50]} 16. Rad1 {[%clk 0:01:58]}  Qc7 {[%clk 0:02:48]} 17. Bxc5 {[%clk 0:01:47]}  bxc5 {[%clk 0:02:47]} 18. Nde4 {[%clk 0:01:46]}  Rc8 {[%clk 0:02:43]} 19. Nxc5 {[%clk 0:01:37]}  Qxc6 {[%clk 0:02:42]} 20. Nd7 {[%clk 0:01:34]}  Qxc4 {[%clk 0:02:39]} 21. Nxf8 {[%clk 0:01:32]}  Bxf8 {[%clk 0:02:33]} 22. fxe5 {[%clk 0:01:31]}  Rc7 {[%clk 0:02:33]} 23. Kh1 {[%clk 0:01:31]}  Ng7 {[%clk 0:02:31]} 24. Ne4 {[%clk 0:01:31]}  h5 {[%clk 0:02:24]} 25. Nf6+ {[%clk 0:01:30]}  Kh8 {[%clk 0:02:24]} 26. Qe3 {[%clk 0:01:24]}  Nf5 {[%clk 0:02:21]} 27. Qd2 {[%clk 0:01:24]}  Kg7 {[%clk 0:02:04]} 28. Rc1 {[%clk 0:01:17]}  Qh4 {[%clk 0:01:57]} 29. Rxf5 {[%clk 0:01:11]}  Rxc1+ {[%clk 0:01:55]} 30. Qxc1 {[%clk 0:01:07]}  exf5 {[%clk 0:01:55]} 31. Qc3 {[%clk 0:00:50]}  Bb4 {[%clk 0:01:48]} 32. Qe3 {[%clk 0:00:36]}  f4 {[%clk 0:01:43]} 33. Qe4 {[%clk 0:00:31]}  Qf2 {[%clk 0:01:39]} 34. h3 {[%clk 0:00:23]}  Be1 {[%clk 0:01:35]} 35. Qf3 {[%clk 0:00:18]}  Qd2 {[%clk 0:01:30]} 36. Ne4 {[%clk 0:00:12]}  Qc1 {[%clk 0:01:29]} 37. Kh2 {[%clk 0:00:12]}  h4 {[%clk 0:01:26]} 38. Nf2 {[%clk 0:00:04]}  Qxb2 {[%clk 0:01:22]} 39. Nd3 {[%clk 0:00:03]}  Bg3+ {[%clk 0:01:20]} 40. Kg1 {[%clk 0:00:02]}  Qb1+ {[%clk 0:01:19]} 41. Qf1 {[%clk 0:00:03]}  Bh2+ {[%clk 0:01:17]} 42. Kf2 {[%clk 0:00:03]}  Qc2+ {[%clk 0:01:11]} 43. Kf3 {[%clk 0:00:03]}  Qxa2 {[%clk 0:01:10]} 44. Nxf4 {[%clk 0:00:03]}  Qb3+ {[%clk 0:01:09]} 45. Nd3 {[%clk 0:00:02]}  Bxe5 {[%clk 0:01:06]} 46. Qe2 {[%clk 0:00:01]}  Bf6 {[%clk 0:01:04]} 47. Kf2 {[%clk 0:00:01]}  Qc4 {[%clk 0:01:03]} 48. Kf1 {[%clk 0:00:01]}  Qd4 {[%clk 0:01:02]} 49. Qd1 {[%clk 0:00:01]}  a5 {[%clk 0:01:01]} 50. Ke1 {[%clk 0:00:01]}  a4 {[%clk 0:01:01]} 51. Qc2 {[%clk 0:00:02]}  a3 {[%clk 0:01:01]} 52. Nc1 {[%clk 0:00:03]}  Qb2 {[%clk 0:01:00]} 53. Kd1 {[%clk 0:00:02]}  Qd4+ {[%clk 0:00:58]} 54. Qd2 {[%clk 0:00:02]}  Qg1+ {[%clk 0:00:57]} 55. Kc2 {[%clk 0:00:02]}  Bb2 {[%clk 0:00:57]} 56. Na2 {[%clk 0:00:02]}  Qc5+ {[%clk 0:00:55]} 57. Kb3 {[%clk 0:00:03]}  Qf5 {[%clk 0:00:56]} 58. Qd5 {[%clk 0:00:01]}  Qxd5+ {[%clk 0:00:55]} 0-1


[Site "https://www.chess.com"]

[Event "Titled Tuesday Blitz November 01 Early 2022"]
[White "Zemlyanskii, Ivan"]
[Black "Oparin, Grigoriy"]
[WhiteFideId "24249971"]
[BlackFideId "24125890"]
[WhiteElo "2107"]
[BlackElo "2639"]
[Result "1-0"]
[Round "09"]
[TimeControl "180+1"]
[Date "2022.11.01"]
[WhiteClock "0:00:05"]
[BlackClock "0:00:01"]

1. d4 {[%clk 0:03:00]}  Nf6 {[%clk 0:02:59]} 2. c4 {[%clk 0:03:00]}  e6 {[%clk 0:02:59]} 3. Nf3 {[%clk 0:03:00]}  Bb4+ {[%clk 0:03:00]} 4. Bd2 {[%clk 0:03:00]}  a5 {[%clk 0:03:00]} 5. a3 {[%clk 0:02:56]}  Bxd2+ {[%clk 0:03:00]} 6. Qxd2 {[%clk 0:02:55]}  O-O {[%clk 0:02:58]} 7. Nc3 {[%clk 0:02:56]}  d6 {[%clk 0:02:57]} 8. e4 {[%clk 0:02:53]}  e5 {[%clk 0:02:52]} 9. Be2 {[%clk 0:02:53]}  exd4 {[%clk 0:02:50]} 10. Nxd4 {[%clk 0:02:53]}  a4 {[%clk 0:02:50]} 11. O-O {[%clk 0:02:47]}  Re8 {[%clk 0:02:50]} 12. Qc2 {[%clk 0:02:44]}  Bd7 {[%clk 0:02:50]} 13. f4 {[%clk 0:02:41]}  Na6 {[%clk 0:02:49]} 14. Bf3 {[%clk 0:02:39]}  Nc5 {[%clk 0:02:49]} 15. Rad1 {[%clk 0:02:37]}  Qc8 {[%clk 0:02:41]} 16. h3 {[%clk 0:02:35]}  Ra5 {[%clk 0:02:37]} 17. Rfe1 {[%clk 0:02:32]}  h6 {[%clk 0:02:33]} 18. Nd5 {[%clk 0:02:14]}  Nh7 {[%clk 0:02:08]} 19. Qc3 {[%clk 0:02:05]}  b6 {[%clk 0:02:07]} 20. Qc2 {[%clk 0:01:50]}  Qb8 {[%clk 0:01:59]} 21. Nb4 {[%clk 0:01:42]}  Qc8 {[%clk 0:01:50]} 22. Ndc6 {[%clk 0:01:16]}  Bxc6 {[%clk 0:01:50]} 23. Nxc6 {[%clk 0:01:17]}  Ra8 {[%clk 0:01:51]} 24. e5 {[%clk 0:01:15]}  dxe5 {[%clk 0:01:49]} 25. Rd8 {[%clk 0:01:07]}  Qxd8 {[%clk 0:01:42]} 26. Nxd8 {[%clk 0:01:07]}  Raxd8 {[%clk 0:01:42]} 27. Rxe5 {[%clk 0:01:03]}  Rxe5 {[%clk 0:01:42]} 28. fxe5 {[%clk 0:01:04]}  Ng5 {[%clk 0:01:43]} 29. Bc6 {[%clk 0:01:02]}  Rd4 {[%clk 0:01:28]} 30. Bxa4 {[%clk 0:00:50]}  Nge4 {[%clk 0:01:29]} 31. Bc6 {[%clk 0:00:44]}  Rd2 {[%clk 0:01:16]} 32. Qb1 {[%clk 0:00:39]}  Ng3 {[%clk 0:01:05]} 33. Kh2 {[%clk 0:00:39]}  Ne2 {[%clk 0:01:01]} 34. Qf5 {[%clk 0:00:34]}  Ne6 {[%clk 0:00:17]} 35. Be8 {[%clk 0:00:20]}  Nd8 {[%clk 0:00:16]} 36. e6 {[%clk 0:00:14]}  fxe6 {[%clk 0:00:15]} 37. Qe5 {[%clk 0:00:14]}  Rd6 {[%clk 0:00:12]} 38. b4 {[%clk 0:00:10]}  Nd4 {[%clk 0:00:09]} 39. c5 {[%clk 0:00:06]}  bxc5 {[%clk 0:00:08]} 40. bxc5 {[%clk 0:00:07]}  Rd5 {[%clk 0:00:08]} 41. Qxc7 {[%clk 0:00:08]}  e5 {[%clk 0:00:09]} 42. Qc8 {[%clk 0:00:06]}  Kh7 {[%clk 0:00:07]} 43. Bd7 {[%clk 0:00:07]}  e4 {[%clk 0:00:06]} 44. Qxd8 {[%clk 0:00:04]}  e3 {[%clk 0:00:06]} 45. Bf5+ {[%clk 0:00:04]}  Rxf5 {[%clk 0:00:02]} 46. Qxd4 {[%clk 0:00:05]}  Re5 {[%clk 0:00:01]} 47. Qxe5 {[%clk 0:00:05]} 1-0


[Site "https://www.chess.com"]

[Event "Titled Tuesday Blitz November 01 Early 2022"]
[White "parintele_chess"]
[Black "Celestino, Rafael Teixeira"]
[BlackFideId "2108925"]
[WhiteElo "2217"]
[BlackElo "2415"]
[Result "0-1"]
[Round "09"]
[TimeControl "180+1"]
[Date "2022.11.02"]
[WhiteClock "0:01:50"]
[BlackClock "0:01:11"]

1. d4 {[%clk 0:02:59]}  Nf6 {[%clk 0:02:58]} 2. c4 {[%clk 0:02:59]}  e6 {[%clk 0:02:59]} 3. Nc3 {[%clk 0:02:58]}  d5 {[%clk 0:02:59]} 4. cxd5 {[%clk 0:02:53]}  exd5 {[%clk 0:03:00]} 5. Bg5 {[%clk 0:02:53]}  Bb4 {[%clk 0:03:00]} 6. e3 {[%clk 0:02:52]}  h6 {[%clk 0:03:00]} 7. Bh4 {[%clk 0:02:52]}  g5 {[%clk 0:03:01]} 8. Bg3 {[%clk 0:02:52]}  Ne4 {[%clk 0:03:01]} 9. Qc2 {[%clk 0:02:49]}  c5 {[%clk 0:02:26]} 10. Bd3 {[%clk 0:02:45]}  Qe7 {[%clk 0:01:47]} 11. Ne2 {[%clk 0:02:34]}  Nxg3 {[%clk 0:01:43]} 12. hxg3 {[%clk 0:02:32]}  cxd4 {[%clk 0:01:42]} 13. Nxd4 {[%clk 0:02:27]}  Nc6 {[%clk 0:01:41]} 14. Kf1 {[%clk 0:01:58]}  Nxd4 {[%clk 0:01:27]} 15. exd4 {[%clk 0:01:59]}  Be6 {[%clk 0:01:25]} 16. Bb5+ {[%clk 0:01:54]}  Bd7 {[%clk 0:01:12]} 17. Re1 {[%clk 0:01:50]}  Bxb5+ {[%clk 0:01:12]} 18. Nxb5 {[%clk 0:01:50]}  Qxe1# {[%clk 0:01:11]} 0-1


[Site "https://www.chess.com"]

[Event "Titled Tuesday Blitz November 01 Early 2022"]
[White "Aarav Dengla"]
[Black "Vakhania, Alexandra"]
[WhiteFideId "45059756"]
[BlackFideId "13602560"]
[WhiteElo "2257"]
[BlackElo "2053"]
[Result "1-0"]
[Round "10"]
[TimeControl "180+1"]
[Date "2022.11.02"]
[WhiteClock "0:00:09"]
[BlackClock "0:00:14"]

1. e4 {[%clk 0:03:00]}  c6 {[%clk 0:02:59]} 2. d4 {[%clk 0:02:57]}  d5 {[%clk 0:02:59]} 3. exd5 {[%clk 0:02:58]}  cxd5 {[%clk 0:02:58]} 4. Bd3 {[%clk 0:02:59]}  Nc6 {[%clk 0:02:57]} 5. c3 {[%clk 0:02:58]}  Qc7 {[%clk 0:02:57]} 6. h3 {[%clk 0:02:57]}  e6 {[%clk 0:02:48]} 7. Nf3 {[%clk 0:02:56]}  Bd6 {[%clk 0:02:48]} 8. O-O {[%clk 0:02:56]}  Nge7 {[%clk 0:02:48]} 9. a4 {[%clk 0:02:53]}  e5 {[%clk 0:02:35]} 10. dxe5 {[%clk 0:02:52]}  Nxe5 {[%clk 0:02:34]} 11. Nxe5 {[%clk 0:02:51]}  Bxe5 {[%clk 0:02:34]} 12. Qc2 {[%clk 0:02:51]}  h6 {[%clk 0:02:28]} 13. Nd2 {[%clk 0:02:46]}  O-O {[%clk 0:02:23]} 14. Nf3 {[%clk 0:02:46]}  Bf6 {[%clk 0:02:23]} 15. Be3 {[%clk 0:02:38]}  Nc6 {[%clk 0:02:21]} 16. Rfe1 {[%clk 0:02:33]}  b6 {[%clk 0:02:14]} 17. Rad1 {[%clk 0:02:31]}  Bb7 {[%clk 0:02:14]} 18. Qd2 {[%clk 0:02:24]}  Ne7 {[%clk 0:01:46]} 19. Bf4 {[%clk 0:02:04]}  Qc6 {[%clk 0:01:41]} 20. Bb5 {[%clk 0:01:49]}  Qc5 {[%clk 0:01:37]} 21. Nd4 {[%clk 0:01:41]}  Ng6 {[%clk 0:01:34]} 22. Bh2 {[%clk 0:01:40]}  a6 {[%clk 0:01:32]} 23. b4 {[%clk 0:01:37]}  Qc8 {[%clk 0:01:28]} 24. Bd3 {[%clk 0:01:37]}  a5 {[%clk 0:01:19]} 25. bxa5 {[%clk 0:00:57]}  Rxa5 {[%clk 0:01:13]} 26. Nb5 {[%clk 0:00:53]}  Rxa4 {[%clk 0:01:06]} 27. Nd6 {[%clk 0:00:48]}  Qd7 {[%clk 0:01:02]} 28. Bb5 {[%clk 0:00:46]}  Bc6 {[%clk 0:01:00]} 29. Bd3 {[%clk 0:00:38]}  Rfa8 {[%clk 0:00:50]} 30. Bf5 {[%clk 0:00:36]}  Qd8 {[%clk 0:00:47]} 31. Qd3 {[%clk 0:00:28]}  Nf4 {[%clk 0:00:40]} 32. Bxf4 {[%clk 0:00:13]}  Rxf4 {[%clk 0:00:39]} 33. Nxf7 {[%clk 0:00:13]}  Kxf7 {[%clk 0:00:35]} 34. Be6+ {[%clk 0:00:14]}  Kf8 {[%clk 0:00:34]} 35. Qh7 {[%clk 0:00:14]}  Re4 {[%clk 0:00:30]} 36. f3 {[%clk 0:00:11]}  Rxe6 {[%clk 0:00:26]} 37. Rxe6 {[%clk 0:00:10]}  Kf7 {[%clk 0:00:25]} 38. Rxc6 {[%clk 0:00:09]}  Ra2 {[%clk 0:00:19]} 39. Qf5 {[%clk 0:00:07]}  Qe8 {[%clk 0:00:19]} 40. Qxd5+ {[%clk 0:00:07]}  Kg6 {[%clk 0:00:18]} 41. Rxf6+ {[%clk 0:00:07]}  Kxf6 {[%clk 0:00:17]} 42. Qxa2 {[%clk 0:00:08]}  Qe3+ {[%clk 0:00:16]} 43. Qf2 {[%clk 0:00:08]}  Qxc3 {[%clk 0:00:15]} 44. Qxb6+ {[%clk 0:00:09]}  Kg5 {[%clk 0:00:15]} 45. Qd4 {[%clk 0:00:09]}  Qc2 {[%clk 0:00:14]} 46. Qg4+ {[%clk 0:00:09]} 1-0


[Site "https://www.chess.com"]

[Event "Titled Tuesday Blitz November 01 Early 2022"]
[White "Alexikov, Alexander"]
[Black "Schut, Han"]
[WhiteFideId "14103958"]
[BlackFideId "1005561"]
[WhiteElo "2222"]
[BlackElo "2024"]
[Result "1-0"]
[Round "10"]
[TimeControl "180+1"]
[Date "2022.11.02"]
[WhiteClock "0:01:20"]
[BlackClock "0:00:06"]

1. e4 {[%clk 0:03:00]}  c5 {[%clk 0:02:53]} 2. Nf3 {[%clk 0:03:00]}  d6 {[%clk 0:02:53]} 3. Bb5+ {[%clk 0:02:59]}  Bd7 {[%clk 0:02:53]} 4. Bxd7+ {[%clk 0:02:58]}  Qxd7 {[%clk 0:02:54]} 5. O-O {[%clk 0:02:57]}  g6 {[%clk 0:02:53]} 6. Re1 {[%clk 0:02:57]}  Nf6 {[%clk 0:02:53]} 7. c4 {[%clk 0:02:56]}  Bg7 {[%clk 0:02:48]} 8. d4 {[%clk 0:02:56]}  cxd4 {[%clk 0:02:48]} 9. Nxd4 {[%clk 0:02:55]}  O-O {[%clk 0:02:48]} 10. f3 {[%clk 0:02:45]}  Rc8 {[%clk 0:02:46]} 11. b3 {[%clk 0:02:40]}  e6 {[%clk 0:02:22]} 12. Be3 {[%clk 0:02:34]}  d5 {[%clk 0:02:22]} 13. cxd5 {[%clk 0:02:33]}  exd5 {[%clk 0:02:21]} 14. e5 {[%clk 0:02:33]}  Ne8 {[%clk 0:02:13]} 15. f4 {[%clk 0:02:32]}  f6 {[%clk 0:01:38]} 16. e6 {[%clk 0:02:25]}  Qc7 {[%clk 0:01:38]} 17. f5 {[%clk 0:02:22]}  Nd6 {[%clk 0:01:25]} 18. Nd2 {[%clk 0:02:19]}  Nxf5 {[%clk 0:01:21]} 19. Nxf5 {[%clk 0:02:16]}  gxf5 {[%clk 0:01:21]} 20. Nf3 {[%clk 0:02:10]}  Nc6 {[%clk 0:01:13]} 21. Nd4 {[%clk 0:02:09]}  Qe5 {[%clk 0:00:48]} 22. Bf2 {[%clk 0:02:05]}  Qf4 {[%clk 0:00:35]} 23. Qd3 {[%clk 0:01:56]}  Ne5 {[%clk 0:00:32]} 24. Qxf5 {[%clk 0:01:54]}  Qxf5 {[%clk 0:00:25]} 25. Nxf5 {[%clk 0:01:53]}  Rc2 {[%clk 0:00:23]} 26. Rad1 {[%clk 0:01:32]}  Re8 {[%clk 0:00:20]} 27. e7 {[%clk 0:01:29]}  Ng4 {[%clk 0:00:10]} 28. Bg3 {[%clk 0:01:27]}  Bh6 {[%clk 0:00:07]} 29. h3 {[%clk 0:01:24]}  Be3+ {[%clk 0:00:06]} 30. Nxe3 {[%clk 0:01:23]}  Nxe3 {[%clk 0:00:06]} 31. Rxe3 {[%clk 0:01:23]}  Rxa2 {[%clk 0:00:06]} 32. Rxd5 {[%clk 0:01:20]} 1-0


[Site "https://www.chess.com"]